fUST/lending_fUST_20250117
["ID","MTS","AMOUNT","RATE_DAILY","PERIOD"]
[349294447,1737102639232,-322.36311962,0.00021917,3]
[349294448,1737102639241,-500.0,0.00021917,3]
[349294449,1737102639250,-500.0,0.00021917,3]
[349294450,1737102639259,-500.0,0.00021917,3]
[349294451,1737102639268,-500.0,0.00021917,3]
[349294452,1737102639277,-500.0,0.00021917,3]
[349294453,1737102639287,-500.0,0.00021917,3]
[349294454,1737102639296,-500.0,0.00021917,3]
[349294455,1737102639305,-500.0,0.00021917,3]
[349294456,1737102639314,-500.0,0.00021917,3]
[349294457,1737102639323,-505.29137053,0.00021917,3]
[349294458,1737102639332,-500.0,0.00021917,3]
[349294459,1737102639341,-500.0,0.00021917,3]
[349294460,1737102639350,-500.0,0.00021917,3]
[349294461,1737102639359,-500.0,0.00021917,3]
[349294462,1737102639368,-500.0,0.00021917,3]
[349294463,1737102639377,-500.0,0.00021917,3]
[349294464,1737102639387,-500.0,0.00021917,3]
[349294465,1737102639396,-500.0,0.00021917,3]
[349294466,1737102639405,-500.0,0.00021917,3]
[349294467,1737102639416,-500.0,0.00021917,3]
[349294470,1737102639427,-500.0,0.00021917,3]
[349294472,1737102639436,-500.0,0.00021917,3]
[349294474,1737102639446,-500.0,0.00021917,3]
[349294475,1737102639455,-500.0,0.00021917,3]
[349294476,1737102639464,-500.0,0.00021917,3]
[349294477,1737102639475,-780.69,0.00021917,3]
[349294478,1737102639485,-500.0,0.00021917,3]
[349294479,1737102639494,-500.0,0.00021917,3]
[349294480,1737102639503,-500.0,0.00021917,3]
[349294481,1737102639512,-500.0,0.00021917,3]
[349294482,1737102639630,-506.39063505,0.00021917,3]
[349294484,1737102639642,-720.16,0.00021917,3]
[349294486,1737102639652,-500.0,0.00021917,3]
[349294487,1737102639664,-500.0,0.00021917,3]
[349294488,1737102639675,-515.32046782,0.00021917,3]
[349294489,1737102639684,-7796.62,0.00021917,3]
[349294491,1737102639694,-500.0,0.00021917,3]
[349294492,1737102639704,-500.0,0.00021917,3]
[349294494,1737102639715,-500.0,0.00021917,3]
[349294495,1737102639724,-500.0,0.00021917,3]
[349294496,1737102639733,-500.0,0.00021917,3]
[349294497,1737102639743,-500.0,0.00021917,3]
[349294498,1737102639752,-503.00266662,0.00021917,3]
[349294499,1737102639761,-500.0,0.00021917,3]
[349294500,1737102639770,-500.0,0.00021917,3]
[349294501,1737102639779,-500.0,0.00021917,3]
[349294502,1737102639787,-500.0,0.00021917,3]
[349294503,1737102639796,-500.0,0.00021917,3]
[349294504,1737102639804,-1886.3,0.00021917,3]
[349294505,1737102639813,-500.0,0.00021917,3]
[349294506,1737102639821,-500.0,0.00021917,3]
[349294507,1737102639830,-504.89239055,0.00021917,3]
[349294508,1737102639839,-500.0,0.00021917,3]
[349294509,1737102639849,-500.0,0.00021917,3]
[349294510,1737102639858,-500.0,0.00021917,3]
[349294511,1737102639867,-500.0,0.00021917,3]
[349294512,1737102639875,-500.0,0.00021917,3]
[349294513,1737102639884,-500.0,0.00021917,3]
[349294514,1737102639893,-500.0,0.00021917,3]
[349294515,1737102639902,-500.0,0.00021917,3]
[349294517,1737102639912,-2087.85,0.00021917,3]
[349294518,1737102639922,-500.0,0.00021917,3]
[349294519,1737102639931,-500.0,0.00021917,3]
[349294520,1737102639940,-500.0,0.00021917,3]
[349294521,1737102639949,-500.0,0.00021917,3]
[349294522,1737102639959,-500.0,0.00021917,3]
[349294523,1737102639968,-500.0,0.00021917,3]
[349294524,1737102639978,-500.0,0.00021917,3]
[349294525,1737102639987,-500.0,0.00021917,3]
[349294526,1737102639996,-3423.0,0.00021917,3]
[349294527,1737102640005,-500.0,0.00021917,3]
[349294528,1737102640014,-500.0,0.00021917,3]
[349294529,1737102640024,-500.0,0.00021917,3]
[349294530,1737102640033,-500.0,0.00021917,3]
[349294531,1737102640042,-500.0,0.00021917,3]
[349294532,1737102640051,-500.0,0.00021917,3]
[349294533,1737102640060,-500.0,0.00021917,3]
[349294534,1737102640069,-500.0,0.00021917,3]
[349294535,1737102640078,-500.0,0.00021917,3]
[349294536,1737102640087,-500.0,0.00021917,3]
[349294537,1737102640095,-500.0,0.00021917,3]
[349294538,1737102640104,-500.0,0.00021917,3]
[349294539,1737102640114,-703.51,0.00021917,3]
[349294540,1737102640123,-512.06,0.00021917,3]
[349294541,1737102640132,-500.0,0.00021917,3]
[349294542,1737102640140,-500.0,0.00021917,3]
[349294543,1737102640150,-500.0,0.00021917,3]
[349294544,1737102640161,-927.19,0.00021917,3]
[349294545,1737102640170,-265.77,0.00021917,3]
[349294546,1737102640179,-500.0,0.00021917,3]
[349294547,1737102640187,-500.0,0.00021917,3]
[349294548,1737102640196,-500.0,0.00021917,3]
[349294549,1737102640205,-500.0,0.00021917,3]
[349294550,1737102640214,-500.0,0.00021917,3]
[349294551,1737102640223,-500.0,0.00021917,3]
[349294552,1737102640232,-828.24,0.00021917,3]
[349294553,1737102640241,-500.0,0.00021917,3]
[349294554,1737102640251,-500.0,0.00021917,3]
[349294555,1737102640260,-500.0,0.00021917,3]
[349294556,1737102640270,-500.0,0.00021917,3]
[349294557,1737102640279,-500.0,0.00021917,3]
[349294558,1737102640288,-500.0,0.00021917,3]
[349294559,1737102640298,-242.28,0.00021917,3]
[349294560,1737102640307,-500.0,0.00021917,3]
[349294561,1737102640316,-538.67,0.00021917,3]
[349294562,1737102640325,-500.0,0.00021917,3]
[349294563,1737102640334,-500.0,0.00021917,3]
[349294564,1737102640343,-500.0,0.00021917,3]
[349294565,1737102640352,-500.0,0.00021917,3]
[349294566,1737102640361,-221.76154267,0.00021917,3]
[349294567,1737102640371,-500.69909415,0.00021917,2]
[349294568,1737102640380,-539.17,0.00021917,3]
[349294569,1737102640388,-10413.95,0.00021917,3]
[349294570,1737102640398,-500.0,0.00021917,3]
[349294571,1737102640407,-500.0,0.00021917,3]
[349294572,1737102640420,-622.70163077,0.00021917,3]
[349294573,1737102640435,-500.0,0.00021917,3]
[349294574,1737102640445,-1825.16,0.00021917,3]
[349294575,1737102640454,-500.0,0.00021917,3]
[349294576,1737102640463,-500.0,0.00021917,3]
[349294577,1737102640472,-500.0,0.00021917,3]
[349294578,1737102640480,-500.0,0.00021917,3]
[349294579,1737102640489,-500.0,0.00021917,3]
[349294580,1737102640498,-500.0,0.00021917,3]
[349294581,1737102640506,-500.0,0.00021917,3]
[349294582,1737102640515,-500.0,0.00021917,3]
[349294583,1737102640523,-500.0,0.00021917,3]
[349294584,1737102640532,-500.0,0.00021917,3]
[349294585,1737102640542,-500.0,0.00021917,3]
[349294586,1737102640551,-500.0,0.00021917,3]
[349294587,1737102640561,-500.0,0.00021917,3]
[349294588,1737102640570,-500.0,0.00021917,3]
[349294589,1737102640580,-500.0,0.00021917,3]
[349294590,1737102640589,-500.0,0.00021917,3]
[349294591,1737102640599,-500.0,0.00021917,3]
[349294592,1737102640608,-500.0,0.00021917,3]
[349294593,1737102640617,-500.0,0.00021917,3]
[349294594,1737102640626,-500.0,0.00021917,3]
[349294595,1737102640637,-501.37837348,0.00021917,3]
[349294596,1737102640647,-500.0,0.00021917,3]
[349294597,1737102640656,-500.0,0.00021917,3]
[349294598,1737102640668,-530.08239586,0.00021917,3]
[349294599,1737102640678,-500.0,0.00021917,3]
[349294600,1737102640688,-499.0,0.00021917,2]
[349294601,1737102640698,-500.0,0.00021917,3]
[349294602,1737102640707,-500.0,0.00021917,3]
[349294603,1737102640720,-500.0,0.00021917,3]
[349294604,1737102640730,-593.29,0.00021917,3]
[349294605,1737102640740,-506.7977865,0.00021917,3]
[349294606,1737102640749,-500.0,0.00021973,2]
[349294607,1737102640759,-153.0,0.00022,2]
[349294608,1737102640768,-215.0538638,0.00022,2]
[349294609,1737102640777,-289.8589194,0.00022,2]
[349294610,1737102640787,-153.0,0.00022,2]
[349294611,1737102640796,-153.0,0.00022,2]
[349294612,1737102640806,-18929.56048758,0.00022,15]
[349294613,1737102640815,-902.22283094,0.00022,2]
[349294614,1737102640825,-153.0,0.00022,2]
[349294615,1737102640834,-153.0,0.00022,2]
[349294616,1737102640844,-500.0,0.00022054,3]
[349294617,1737102640854,-501.77418877,0.00022054,3]
[349294618,1737102640863,-500.0,0.00022054,3]
[349294619,1737102640873,-502.76119709,0.00022054,3]
[349294620,1737102640883,-501.62241406,0.00022054,3]
[349294621,1737102640892,-500.0,0.00022054,3]
[349294622,1737102640902,-218.17570468,0.00022054,3]
[349294623,1737102640912,-528.70025443,0.00022054,3]
[349294624,1737102640922,-500.0,0.00022054,3]
[349294625,1737102640933,-500.0,0.00022054,3]
[349294626,1737102640942,-500.0,0.00022054,3]
[349294627,1737102640951,-500.0,0.00022054,3]
[349294628,1737102640961,-500.0,0.00022054,3]
[349294629,1737102640970,-500.0,0.00022054,3]
[349294630,1737102640980,-500.0,0.00022054,3]
[349294631,1737102640989,-500.0,0.00022054,3]
[349294632,1737102640998,-457.94030538,0.00022054,3]
[349294633,1737102641007,-500.0,0.00022054,3]
[349294634,1737102641016,-500.0,0.00022054,3]
[349294635,1737102641026,-500.0,0.00022054,3]
[349294636,1737102641035,-500.0,0.00022054,3]
[349294637,1737102641044,-500.0,0.00022054,3]
[349294638,1737102641053,-500.0,0.00022054,3]
[349294639,1737102641062,-519.60782419,0.00022054,3]
[349294640,1737102641071,-500.0,0.00022054,3]
[349294641,1737102641082,-500.0,0.00022054,3]
[349294642,1737102641094,-500.0,0.00022054,3]
[349294643,1737102641106,-500.0,0.00022054,3]
[349294644,1737102641118,-509.15,0.00022054,3]
[349294645,1737102641130,-500.0,0.00022054,3]
[349294646,1737102641142,-453.59203299,0.00022054,3]
[349294647,1737102641153,-500.0,0.00022054,3]
[349294648,1737102641164,-3828.42,0.00022054,3]
[349294649,1737102641174,-500.0,0.00022054,3]
[349294650,1737102641185,-500.0,0.00022054,3]
[349294651,1737102641196,-1236.11,0.00022054,3]
[349294652,1737102641207,-500.0,0.00022054,3]
[349294653,1737102641219,-500.0,0.00022054,3]
[349294654,1737102641230,-500.0,0.00022054,3]
[349294655,1737102641241,-500.0,0.00022054,3]
[349294656,1737102641251,-500.0,0.00022054,3]
[349294657,1737102641262,-500.0,0.00022054,3]
[349294658,1737102641274,-500.0,0.00022054,3]
[349294659,1737102641284,-500.0,0.00022054,3]
[349294660,1737102641295,-500.0,0.00022054,3]
[349294661,1737102641306,-500.0,0.00022054,3]
[349294662,1737102641317,-500.0,0.00022054,3]
[349294663,1737102641329,-500.0,0.00022054,3]
[349294664,1737102641340,-500.0,0.00022054,3]
[349294665,1737102641351,-649.06697316,0.00022054,3]
[349294666,1737102641361,-500.0,0.00022054,3]
[349294667,1737102641371,-500.0,0.00022054,3]
[349294668,1737102641381,-614.65,0.00022054,3]
[349294669,1737102641391,-500.0,0.00022054,3]
[349294670,1737102641401,-500.0,0.00022054,3]
[349294671,1737102641413,-764.88,0.00022054,3]
[349294672,1737102641423,-500.0,0.00022054,3]
[349294673,1737102641435,-500.0,0.00022054,3]
[349294674,1737102641447,-500.0,0.00022054,3]
[349294675,1737102641457,-582.00240901,0.00022054,3]
[349294676,1737102641469,-361.31135746,0.00022054,3]
[349294677,1737102641480,-500.0,0.00022054,3]
[349294678,1737102641490,-8424.1,0.00022054,3]
[349294679,1737102641499,-500.0,0.00022054,3]
[349294680,1737102641509,-500.0,0.00022054,3]
[349294681,1737102641520,-500.0,0.00022054,2]
[349294682,1737102641531,-6662.27,0.00022054,3]
[349294683,1737102641541,-500.0,0.00022054,3]
[349294684,1737102641552,-500.0,0.00022054,3]
[349294685,1737102641563,-500.0,0.00022054,3]
[349294686,1737102641574,-240.11,0.00022054,3]
[349294687,1737102641585,-500.0,0.00022054,3]
[349294688,1737102641597,-500.0,0.00022054,3]
[349294689,1737102641608,-500.0,0.00022054,3]
[349294690,1737102641619,-500.0,0.00022054,3]
[349294691,1737102641632,-780.69,0.00022054,3]
[349294692,1737102641647,-500.0,0.00022054,3]
[349294693,1737102641659,-720.16,0.00022054,3]
[349294694,1737102641671,-7796.62,0.00022054,3]
[349294695,1737102641683,-500.0,0.00022054,3]
[349294696,1737102641694,-500.0,0.00022054,3]
[349294697,1737102641705,-500.0,0.00022054,3]
[349294698,1737102641716,-1886.3,0.00022054,3]
[349294699,1737102641726,-500.0,0.00022054,3]
[349294700,1737102641736,-500.0,0.00022054,3]
[349294701,1737102641745,-500.0,0.00022054,3]
[349294702,1737102641754,-500.0,0.00022054,3]
[349294703,1737102641764,-2087.85,0.00022054,3]
[349294704,1737102641773,-500.0,0.00022054,3]
[349294705,1737102641784,-500.0,0.00022054,3]
[349294706,1737102641794,-500.0,0.00022054,3]
[349294707,1737102641807,-3423.0,0.00022054,3]
[349294708,1737102641818,-500.0,0.00022054,3]
[349294709,1737102641829,-297.3,0.00022054,3]
[349294710,1737102641839,-500.0,0.00022054,3]
[349294711,1737102641848,-500.0,0.00022054,3]
[349294712,1737102641859,-500.0,0.00022054,3]
[349294713,1737102641869,-703.51,0.00022054,3]
[349294714,1737102641881,-927.19,0.00022054,3]
[349294715,1737102641891,-500.0,0.00022054,3]
[349294716,1737102641902,-500.0,0.00022054,3]
[349294717,1737102641915,-500.0,0.00022054,3]
[349294718,1737102641926,-828.24,0.00022054,3]
[349294719,1737102641937,-500.0,0.00022054,3]
[349294720,1737102641947,-539.17,0.00022054,3]
[349294721,1737102641958,-10413.95,0.00022054,3]
[349294722,1737102641968,-1825.16,0.00022054,3]
[349294723,1737102641978,-500.0,0.00022054,3]
[349294724,1737102641988,-500.0,0.00022054,3]
[349294725,1737102641999,-500.0,0.00022054,3]
[349294726,1737102642009,-500.0,0.00022054,3]
[349294727,1737102642019,-212.41446255,0.00022054,3]
[349294728,1737102642029,-500.0,0.00022054,3]
[349294729,1737102642039,-593.29,0.00022054,3]
[349294730,1737102642049,-505.53382475,0.00022191,3]
[349294731,1737102642059,-500.0,0.00022191,3]
[349294732,1737102642069,-539.15,0.00022191,3]
[349294733,1737102642079,-628.52,0.00022191,3]
[349294734,1737102642089,-555.57328101,0.00022191,3]
[349294735,1737102642099,-3828.42,0.00022191,3]
[349294736,1737102642109,-500.0,0.00022191,3]
[349294737,1737102642119,-1236.11,0.00022191,3]
[349294738,1737102642130,-547.67,0.00022191,3]
[349294739,1737102642140,-500.0,0.00022191,3]
[349294740,1737102642152,-500.0,0.00022191,3]
[349294741,1737102642164,-209.64,0.00022191,3]
[349294742,1737102642173,-210.25,0.00022191,3]
[349294743,1737102642184,-500.0,0.00022191,3]
[349294744,1737102642195,-500.0,0.00022191,3]
[349294745,1737102642206,-500.0,0.00022191,3]
[349294746,1737102642216,-500.0,0.00022191,3]
[349294747,1737102642226,-764.88,0.00022191,3]
[349294748,1737102642237,-323.15,0.00022191,3]
[349294749,1737102642246,-405.60350708,0.00022191,3]
[349294750,1737102642256,-500.0,0.00022191,3]
[349294751,1737102642266,-8424.1,0.00022191,3]
[349294752,1737102642276,-500.0,0.00022191,3]
[349294753,1737102642287,-500.0,0.00022191,2]
[349294755,1737102642297,-6662.27,0.00022191,3]
[349294756,1737102642307,-324.53,0.00022191,3]
[349294757,1737102642318,-500.0,0.00022191,3]
[349294758,1737102642329,-500.0,0.00022191,3]
[349294759,1737102642339,-780.69,0.00022191,3]
[349294760,1737102642350,-720.16,0.00022191,3]
[349294761,1737102642361,-7796.62,0.00022191,3]
[349294762,1737102642371,-500.0,0.00022191,3]
[349294763,1737102642381,-500.0,0.00022191,3]
[349294766,1737102642392,-1886.3,0.00022191,3]
[349294768,1737102642403,-500.0,0.00022191,3]
[349294770,1737102642415,-500.0,0.00022191,3]
[349294773,1737102642425,-500.0,0.00022191,3]
[349294777,1737102642435,-2087.85,0.00022191,3]
[349294781,1737102642445,-500.0,0.00022191,3]
[349294786,1737102642455,-500.0,0.00022191,3]
[349294791,1737102642467,-500.0,0.00022191,3]
[349294795,1737102642478,-3423.0,0.00022191,3]
[349294800,1737102642488,-500.0,0.00022191,3]
[349294804,1737102642498,-500.0,0.00022191,3]
[349294811,1737102642509,-242.58,0.00022191,3]
[349294814,1737102642520,-703.51,0.00022191,3]
[349294817,1737102642530,-927.19,0.00022191,3]
[349294822,1737102642540,-500.0,0.00022191,3]
[349294826,1737102642550,-500.0,0.00022191,3]
[349294830,1737102642560,-828.24,0.00022191,3]
[349294834,1737102642570,-500.0,0.00022191,3]
[349294838,1737102642581,-539.17,0.00022191,3]
[349294842,1737102642591,-10413.95,0.00022191,3]
[349294847,1737102642601,-1825.16,0.00022191,3]
[349294850,1737102642611,-500.0,0.00022191,3]
[349294853,1737102642622,-500.0,0.00022191,3]
[349294856,1737102642635,-500.0,0.00022191,3]
[349294859,1737102642645,-593.29,0.00022191,3]
[349294862,1737102642655,-440.572,0.0002225,2]
[349294864,1737102642667,-500.0,0.00022326,9]
[349294866,1737102642678,-3828.42,0.00022328,3]
[349294867,1737102642688,-571.88268061,0.00022328,3]
[349294868,1737102642699,-1236.11,0.00022328,3]
[349294870,1737102642709,-549.94848453,0.00022328,3]
[349294872,1737102642719,-500.0,0.00022328,3]
[349294874,1737102642730,-500.0,0.00022328,3]
[349294885,1737102642890,-429.88,0.00022328,3]
[349294886,1737102642901,-500.0,0.00022328,3]
[349294887,1737102642911,-764.88,0.00022328,3]
[349294888,1737102642923,-500.0,0.00022328,3]
[349294889,1737102642933,-8424.1,0.00022328,3]
[349294890,1737102642942,-361.8,0.00022328,3]
[349294891,1737102642951,-500.0,0.00022328,2]
[349294892,1737102642961,-6662.27,0.00022328,3]
[349294893,1737102642970,-500.0,0.00022328,3]
[349294894,1737102642980,-500.0,0.00022328,3]
[349294895,1737102642989,-780.69,0.00022328,3]
[349294896,1737102642999,-720.16,0.00022328,3]
[349294898,1737102643008,-7796.62,0.00022328,3]
[349294899,1737102643018,-165.99,0.00022328,3]
[349294900,1737102643028,-500.0,0.00022328,3]
[349294901,1737102643037,-1886.3,0.00022328,3]
[349294902,1737102643046,-500.0,0.00022328,3]
[349294903,1737102643055,-500.0,0.00022328,3]
[349294904,1737102643065,-2087.85,0.00022328,3]
[349294905,1737102643074,-500.0,0.00022328,3]
[349294906,1737102643083,-500.0,0.00022328,3]
[349294907,1737102643092,-500.0,0.00022328,3]
[349294908,1737102643101,-3423.0,0.00022328,3]
[349294909,1737102643111,-500.0,0.00022328,3]
[349294910,1737102643120,-474.7627999,0.00022328,3]
[349294911,1737102643129,-703.51,0.00022328,3]
[349294912,1737102643139,-927.19,0.00022328,3]
[349294913,1737102643148,-500.0,0.00022328,3]
[349294914,1737102643157,-500.0,0.00022328,3]
[349294915,1737102643168,-828.24,0.00022328,3]
[349294916,1737102643177,-500.0,0.00022328,3]
[349294917,1737102643186,-539.17,0.00022328,3]
[349294918,1737102643194,-10413.95,0.00022328,3]
[349294919,1737102643203,-1825.16,0.00022328,3]
[349294920,1737102643211,-500.0,0.00022328,3]
[349294921,1737102643220,-530.24,0.00022328,3]
[349294922,1737102643229,-593.29,0.00022328,3]
[349294923,1737102643238,-500.0,0.00022328,3]
[349294924,1737102643248,-3828.42,0.00022465,3]
[349294925,1737102643258,-1236.11,0.00022465,3]
[349294926,1737102643267,-500.0,0.00022465,3]
[349294927,1737102643277,-351.70826812,0.00022465,3]
[349294928,1737102643286,-764.88,0.00022465,3]
[349294929,1737102643295,-453.23,0.00022465,3]
[349294930,1737102643305,-8424.1,0.00022465,3]
[349294931,1737102643314,-500.0,0.00022465,2]
[349294932,1737102643324,-500.0,0.00022465,3]
[349294933,1737102643334,-500.0,0.00022465,3]
[349294934,1737102643343,-780.69,0.00022465,3]
[349294935,1737102643352,-720.16,0.00022465,3]
[349294936,1737102643361,-7796.62,0.00022465,3]
[349294937,1737102643371,-500.0,0.00022465,3]
[349294938,1737102643380,-1886.3,0.00022465,3]
[349294939,1737102643390,-500.0,0.00022465,3]
[349294940,1737102643400,-500.0,0.00022465,3]
[349294941,1737102643409,-2087.85,0.00022465,3]
[349294942,1737102643420,-436.12453859,0.00022465,3]
[349294943,1737102643430,-500.0,0.00022465,3]
[349294944,1737102643440,-500.0,0.00022465,3]
[349294945,1737102643450,-3423.0,0.00022465,3]
[349294946,1737102643459,-500.0,0.00022465,3]
[349294947,1737102643470,-703.51,0.00022465,3]
[349294948,1737102643479,-927.19,0.00022465,3]
[349294949,1737102643489,-500.0,0.00022465,3]
[349294950,1737102643499,-500.0,0.00022465,3]
[349294951,1737102643508,-828.24,0.00022465,3]
[349294952,1737102643517,-408.34905032,0.00022465,3]
[349294953,1737102643527,-539.17,0.00022465,3]
[349294954,1737102643537,-10413.95,0.00022465,3]
[349294955,1737102643547,-1825.16,0.00022465,3]
[349294956,1737102643556,-500.0,0.00022465,3]
[349294957,1737102643567,-593.29,0.00022465,3]
[349294958,1737102643576,-309.7,0.00022465,3]
[349294959,1737102643587,-978.25925374,0.00022521,2]
[349294960,1737102643596,-1200.0,0.00022561,2]
[349294961,1737102643606,-160.0,0.00022597,3]
[349294962,1737102643616,-227.93567335,0.00022601,2]
[349294963,1737102643626,-500.0,0.00022601,2]
[349294964,1737102643636,-500.0,0.00022601,2]
[349294965,1737102643650,-169.01202044,0.00022601,2]
[349294966,1737102643660,-3828.42,0.00022602,3]
[349294967,1737102643671,-1236.11,0.00022602,3]
[349294968,1737102643682,-500.0,0.00022602,3]
[349294969,1737102643692,-764.88,0.00022602,3]
[349294970,1737102643701,-8424.1,0.00022602,3]
[349294971,1737102643711,-500.0,0.00022602,2]
[349294972,1737102643722,-500.0,0.00022602,3]
[349294973,1737102643732,-378.60886663,0.00022602,3]
[349294974,1737102643741,-780.69,0.00022602,3]
[349294975,1737102643750,-720.16,0.00022602,3]
[349294976,1737102643759,-7796.62,0.00022602,3]
[349294977,1737102643767,-420.10802397,0.00022602,3]
[349294978,1737102643777,-1886.3,0.00022602,3]
[349294979,1737102643786,-500.0,0.00022602,3]
[349294980,1737102643795,-500.0,0.00022602,3]
[349294981,1737102643805,-2087.85,0.00022602,3]
[349294982,1737102643814,-500.0,0.00022602,3]
[349294983,1737102643824,-500.0,0.00022602,3]
[349294984,1737102643834,-3423.0,0.00022602,3]
[349294985,1737102643843,-500.0,0.00022602,3]
[349294986,1737102643853,-703.51,0.00022602,3]
[349294987,1737102643862,-927.19,0.00022602,3]
[349294988,1737102643871,-500.0,0.00022602,3]
[349294989,1737102643881,-500.0,0.00022602,3]
[349294990,1737102643891,-828.24,0.00022602,3]
[349294991,1737102643900,-539.17,0.00022602,3]
[349294992,1737102643909,-10413.95,0.00022602,3]
[349294993,1737102643920,-1825.16,0.00022602,3]
[349294994,1737102643929,-280.42600225,0.00022602,3]
[349294995,1737102643938,-593.29,0.00022602,3]
[349294996,1737102643948,-3828.42,0.00022739,3]
[349294997,1737102643957,-1236.11,0.00022739,3]
[349294998,1737102643967,-237.69,0.00022739,3]
[349294999,1737102643976,-764.88,0.00022739,3]
[349295000,1737102643985,-8424.1,0.00022739,3]
[349295001,1737102643994,-500.0,0.00022739,2]
[349295002,1737102644004,-248.6,0.00022739,3]
[349295003,1737102644013,-780.69,0.00022739,3]
[349295004,1737102644023,-720.16,0.00022739,3]
[349295005,1737102644032,-7796.62,0.00022739,3]
[349295006,1737102644041,-500.0,0.00022739,3]
[349295007,1737102644051,-1886.3,0.00022739,3]
[349295008,1737102644060,-500.0,0.00022739,3]
[349295009,1737102644069,-2087.85,0.00022739,3]
[349295010,1737102644078,-500.0,0.00022739,3]
[349295011,1737102644088,-500.0,0.00022739,3]
[349295012,1737102644098,-3423.0,0.00022739,3]
[349295013,1737102644107,-500.0,0.00022739,3]
[349295014,1737102644116,-703.51,0.00022739,3]
[349295015,1737102644126,-500.0,0.00022739,3]
[349295016,1737102644136,-927.19,0.00022739,3]
[349295017,1737102644145,-330.35607043,0.00022739,3]
[349295018,1737102644155,-828.24,0.00022739,3]
[349295019,1737102644165,-539.17,0.00022739,3]
[349295020,1737102644175,-10413.95,0.00022739,3]
[349295021,1737102644184,-1825.16,0.00022739,3]
[349295022,1737102644193,-593.29,0.00022739,3]
[349295023,1737102644202,-3828.42,0.00022876,3]
[349295024,1737102644211,-1236.11,0.00022876,3]
[349295025,1737102644220,-764.88,0.00022876,3]
[349295026,1737102644229,-8424.1,0.00022876,3]
[349295027,1737102644238,-500.0,0.00022876,2]
[349295028,1737102644247,-780.69,0.00022876,3]
[349295029,1737102644256,-720.16,0.00022876,3]
[349295030,1737102644265,-7796.62,0.00022876,3]
[349295031,1737102644274,-500.0,0.00022876,3]
[349295032,1737102644283,-1886.3,0.00022876,3]
[349295033,1737102644292,-500.0,0.00022876,3]
[349295034,1737102644302,-2087.85,0.00022876,3]
[349295035,1737102644311,-500.0,0.00022876,3]
[349295036,1737102644320,-500.0,0.00022876,3]
[349295037,1737102644329,-3423.0,0.00022876,3]
[349295038,1737102644339,-500.0,0.00022876,3]
[349295039,1737102644348,-703.51,0.00022876,3]
[349295040,1737102644357,-500.0,0.00022876,3]
[349295041,1737102644367,-927.19,0.00022876,3]
[349295042,1737102644376,-828.24,0.00022876,3]
[349295043,1737102644386,-539.17,0.00022876,3]
[349295044,1737102644395,-10413.95,0.00022876,3]
[349295045,1737102644404,-1825.16,0.00022876,3]